Workbook

Sheet Allowable Stress Design (null) (hidden)
A1: 2008 MSJC Anchor Bolt Design Values
A2: Allowable Stress Design
A4: Anchor Type = | B4: Bent-Bar | D4: Choose "Headed" or "Bent-Bar"
A5: Anchor Yield Strength, fy = | B5: =IF(B4="Headed",60000,36000) -> 36000 | C5: psi
A6: Anchor Diameter, db = | B6: 0.5 | C6: in | D6: Choose 1/2, 5/8, 3/4, or 7/8 in.
A7: Anchor Hook Length, eb = | B7: =IF(B4="Bent-Bar",2*B6,0) -> 1 | C7: in | D7: Taken equal to 2db for bent anchors
A8: f'm = | B8: 2000 | C8: psi
A9: Wall thickness, t = | B9: 7.625 | C9: in
A10: Edge Distance, lbe = | B10: 4 | C10: in
A11: Net Anchor Area, Ab = | B11: =IF(B6=0.5,0.142,IF(B6=0.625,0.226,IF(B6=0.75,0.334,IF(B6=0.875,0.462,"NA")))) -> 0.142 | C11: in2
A12: Min. Embed Length, lbmin = | B12: =IF(4*B6<2,2,4*B6) -> 2 | C12: in
A13: Actual Embedment Length, lb | B13: 5 | C13: in | D13: =IF(B13>=B12,"Embed. OK", "Revise Embedment Length") -> Embed. OK
A15: Axial Tensile Strength | N15: Shear Strength
B16: Projected Breakout Area Outside Masonry, Aout (in.2)
A17: Anchor Embedment, lb (in.) | B17: Segment Height, h1 (in.) | C17: Segment Height, h2 (in.) | D17: Segment Length, s1 (in.) | E17: Segment Length, s2 (in.) | F17: Segment Area, A1 (in.) | G17: Segment Area, A2 (in.) | H17: Net Projected Tension Breakout Area, Apt (in.2) | I17: Breakout Strength, Bab (lb) | J17: Yield Strength, Bas (lb) | K17: Pullout Strength, Bap (lb) | L17: Allowable Axial Load, Ba (lb) | M17: Governing Failure Mode | N17: Net Projected Shear Breakout Area, Apv (in.2) | O17: Breakout Strength, Bvb (lb) | P17: Crushing Strength, Bvc (lb)* | Q17: Pryout Strength, Bvpry (lb) | R17: Yield Strength, Bvs (lb) | S17: Allowable Shear Load, Bv (lb) | T17: Governing Failure Mode
A18: =B12 -> 2 | B18: =IF(A18-$B$10<0,0,A18-$B$10) -> 0 | C18: =IF(A18+$B$10-$B$9<0,0,A18+$B$10-$B$9) -> 0 | D18: =(8*B18*(A18-(B18/2)))^0.5 -> 0 | E18: =(8*C18*(A18-(C18/2)))^0.5 -> 0 | F18: =IF(B18=0,0,((B18/(6*D18))*((3*B18*B18)+(4*D18*D18)))) -> 0 | G18: =IF(C18=0,0,((C18/(6*E18))*((3*C18*C18)+(4*E18*E18)))) -> 0 | H18: =(PI()*(A18^2))-F18-G18 -> 12.56637061 | I18: =1.25*H18*SQRT($B$8) -> 702.4814731 | J18: =0.6*$B$11*$B$5 -> 3067.2 | K18: =IF(B4="bent-bar",(0.6*$B$8*$B$7*$B$6)+((120*3.141592)*(A18+$B$7+$B$6)*$B$6),"N/A") -> 1259.73432 | L18: =IF($B$4="headed",MIN(I18:J18),MIN(I18:K18)) -> 702.4814731 | M18: =IF(L18=I18,"Breakout",IF(L18=J18,"Yield","Pullout")) -> Breakout | N18: =(0.5)*PI()*($B$10^2) -> 25.13274123 | O18: =1.25*N18*($B$8^0.5) -> 1404.962946 | P18: =350*($B$8*$B$11)^0.25 -> 1436.804334 | Q18: =2*I18 -> 1404.962946 | R18: =J18*0.6 -> 1840.32 | S18: =MIN(O18:R18) -> 1404.962946 | T18: =IF(S18=O18,"Breakout",IF(S18=P18,"Crushing",IF(S18=Q18,"Pryout","Yield"))) -> Breakout
A19: 4 | B19: 0 | C19: 0.375 | D19: 0 | E19: 3.381937315 | F19: =IF(B19=0,0,((B19/(6*D19))*((3*B19*B19)+(4*D19*D19)))) -> 0 | G19: =IF(C19=0,0,((C19/(6*E19))*((3*C19*C19)+(4*E19*E19)))) -> 0.853280803 | H19: =(PI()*(A19^2))-F19-G19 -> 49.41220165 | I19: =1.25*H19*SQRT($B$8) -> 2762.226045 | J19: =0.6*$B$11*$B$5 -> 3067.2 | K19: N/A | L19: =IF($B$4="Headed",MIN(I19:J19),MIN(I19:K19)) -> 2762.226045 | M19: =IF(L19=I19,"Breakout",IF(L19=J19,"Yield","Pullout")) -> Breakout | N19: =(0.5)*PI()*($B$10^2) -> 25.13274123 | O19: =1.25*N19*($B$8^0.5) -> 1404.962946 | P19: =350*($B$8*$B$11)^0.25 -> 1436.804334 | Q19: =2*I19 -> 5524.452091 | R19: =J19*0.6 -> 1840.32 | S19: =MIN(O19:R19) -> 1404.962946 | T19: =IF(S19=O19,"Breakout",IF(S19=P19,"Crushing",IF(S19=Q19,"Pryout","Yield"))) -> Breakout
A20: =A19+1 -> 5 | B20: 1 | C20: 1.375 | D20: 6 | E20: 6.887488657 | F20: 4.083333333 | G20: 6.502250954 | H20: 67.95423205 | I20: 3798.757056 | J20: 3067.2 | K20: N/A | L20: 3067.2 | M20: Yield | N20: 25.13274123 | O20: 1404.962946 | P20: 1436.804334 | Q20: 7597.514111 | R20: 1840.32 | S20: 1404.962946 | T20: Breakout
A21: 6 | B21: 2 | C21: 2.375 | D21: 8.94427191 | E21: 9.562295749 | F21: 12.37290948 | G21: 15.84078634 | H21: 84.88363972 | I21: 4745.139715 | J21: 3067.2 | K21: N/A | L21: 3067.2 | M21: Yield | N21: 25.13274123 | O21: 1404.962946 | P21: 1436.804334 | Q21: 9490.279429 | R21: 1840.32 | S21: 1404.962946 | T21: Breakout
A22: 7 | B22: 3 | C22: 3.375 | D22: 11.48912529 | E22: 11.97653957 | F22: 24.15327476 | G22: 28.55215839 | H22: 101.2326069 | I22: 5659.074763 | J22: 3067.2 | K22: N/A | L22: 3067.2 | M22: Yield | N22: 25.13274123 | O22: 1404.962946 | P22: 1436.804334 | Q22: 11318.14953 | R22: 1840.32 | S22: 1404.962946 | T22: Breakout
A23: 8 | B23: 4 | C23: 4.375 | D23: 13.85640646 | E23: 14.26315183 | F23: 39.2598183 | G23: 44.53640401 | H23: 117.2657075 | I23: 6555.352336 | J23: 3067.2 | K23: N/A | L23: 3067.2 | M23: Yield | N23: 25.13274123 | O23: 1404.962946 | P23: 1436.804334 | Q23: 13110.70467 | R23: 1840.32 | S23: 1404.962946 | T23: Breakout
A24: 9 | B24: 5 | C24: 5.375 | D24: 16.1245155 | E24: 16.47536039 | F24: 57.62447044 | G24: 63.74941558 | H24: 133.0951189 | I24: 7440.243334 | J24: 3067.2 | K24: N/A | L24: 3067.2 | M24: Yield | N24: 25.13274123 | O24: 1404.962946 | P24: 1436.804334 | Q24: 14880.48667 | R24: 1840.32 | S24: 1404.962946 | T24: Breakout
A25: 10 | B25: 6 | C25: 6.375 | D25: 18.33030278 | E25: 18.63967543 | F25: 79.21309416 | G25: 86.16841927 | H25: 148.7777519 | I25: 8316.929172 | J25: 3067.2 | K25: N/A | L25: =IF($B$4="Headed",MIN(I25:J25),MIN(I25:K25)) -> 3067.2 | M25: Yield | N25: 25.13274123 | O25: 1404.962946 | P25: 1436.804334 | Q25: 16633.85834 | R25: 1840.32 | S25: 1404.962946 | T25: Breakout
A26: 11 | B26: 7 | C26: 7.375 | D26: 20.49390153 | E26: 20.77107364 | F26: 104.0065503 | G26: 111.7804426 | H26: 164.3457182 | I26: 9187.204942 | J26: 3067.2 | K26: N/A | L26: 3067.2 | M26: Yield | N26: 25.13274123 | O26: 1404.962946 | P26: 1436.804334 | Q26: 18374.40988 | R26: 1840.32 | S26: 1404.962946 | T26: Breakout
A27: 12.5 | B27: 8.5 | C27: 8.875 | D27: 23.68543856 | E27: 23.92566613 | F27: 147.1816741 | G27: 156.1688738 | H27: 187.5233042 | I27: 10482.87139 | J27: 3067.2 | K27: =IF(B14="bent-bar",(0.6*$B$8*$B$7*$B$6)+((120*3.141592)*(A27+$B$7+$B$6)*$B$6),"N/A") -> N/A | L27: 3067.2 | M27: Yield | N27: 25.13274123 | O27: 1404.962946 | P27: 1436.804334 | Q27: 20965.74278 | R27: 1840.32 | S27: 1404.962946 | T27: Breakout
A28: =A27+0.5 -> 13 | B28: 9 | C28: 9.375 | D28: 24.73863375 | E28: 24.96873044 | F28: 163.1658417 | G28: 172.5546955 | H28: 195.2086212 | I28: 10912.49367 | J28: 3067.2 | K28: N/A | L28: 3067.2 | M28: Yield | N28: 25.13274123 | O28: 1404.962946 | P28: 1436.804334 | Q28: 21824.98734 | R28: 1840.32 | S28: 1404.962946 | T28: Breakout
A29: =A28+0.5 -> 13.5 | B29: 9.5 | C29: 9.875 | D29: 25.78759392 | E29: 26.0084121 | F29: 179.9452164 | G29: 189.734649 | H29: 202.8753958 | I29: 11341.0794 | J29: 3067.2 | K29: N/A | L29: 3067.2 | M29: Yield | N29: 25.13274123 | O29: 1404.962946 | P29: 1436.804334 | Q29: 22682.1588 | R29: 1840.32 | S29: 1404.962946 | T29: Breakout
A30: 14 | B30: 10 | C30: 10.375 | D30: 26.83281573 | E30: 27.04510122 | F30: 197.519338 | G30: 207.7084153 | H30: 210.5244067 | I30: 11768.67211 | J30: 3067.2 | K30: N/A | L30: 3067.2 | M30: Yield | N30: 25.13274123 | O30: 1404.962946 | P30: 1436.804334 | Q30: 23537.34422 | R30: 1840.32 | S30: 1404.962946 | T30: Breakout
A31: 14.5 | B31: 10.5 | C31: 10.875 | D31: 27.87471973 | E31: 28.07912926 | F31: 215.8878209 | G31: 226.4757269 | H31: 218.1563076 | I31: 12195.30834 | J31: 3067.2 | K31: N/A | L31: 3067.2 | M31: Yield | N31: 25.13274123 | O31: 1404.962946 | P31: 1436.804334 | Q31: 24390.61668 | R31: 1840.32 | S31: 1404.962946 | T31: Breakout
A32: 15 | B32: 11 | C32: 11.375 | D32: 28.91366459 | E32: 29.11077979 | F32: 235.0503391 | G32: 246.0363574 | H32: 225.7716505 | I32: 12621.01895 | J32: 3067.2 | K32: N/A | L32: 3067.2 | M32: Yield | N32: 25.13274123 | O32: 1404.962946 | P32: 1436.804334 | Q32: 25242.0379 | R32: 1840.32 | S32: 1404.962946 | T32: Breakout
A33: 15.5 | B33: 11.5 | C33: 11.875 | D33: 29.94995826 | E33: 30.14029695 | F33: 255.0066158 | G33: 266.3901143 | H33: 233.3709049 | I33: 13045.83019 | J33: 3067.2 | K33: N/A | L33: 3067.2 | M33: Yield | N33: 25.13274123 | O33: 1404.962946 | P33: 1436.804334 | Q33: 26091.66037 | R33: 1840.32 | S33: 1404.962946 | T33: Breakout
A34: 16 | B34: 12 | C34: 12.375 | D34: 30.98386677 | E34: 31.16789213 | F34: 275.7564142 | G34: 287.5368329 | H34: 240.9544722 | I34: 13469.76448 | J34: 3067.2 | K34: N/A | L34: 3067.2 | M34: Yield | N34: 25.13274123 | O34: 1404.962946 | P34: 1436.804334 | Q34: 26939.52896 | R34: 1840.32 | S34: 1404.962946 | T34: Breakout
A35: 16.5 | B35: 12.5 | C35: 12.875 | D35: 32.01562119 | E35: 32.19374939 | F35: 297.2995311 | G35: 309.4763717 | H35: 248.5226972 | I35: 13892.84112 | J35: 3067.2 | K35: N/A | L35: 3067.2 | M35: Yield | N35: 25.13274123 | O35: 1404.962946 | P35: 1436.804334 | Q35: 27785.68224 | R35: 1840.32 | S35: 1404.962946 | T35: Breakout
A36: 17 | B36: 13 | C36: 13.375 | D36: 33.04542328 | E36: 33.21802974 | F36: 319.6357907 | G36: 332.2086082 | H36: 256.0758779 | I36: 14315.07676 | J36: 3067.2 | K36: N/A | L36: 3067.2 | M36: Yield | N36: 25.13274123 | O36: 1404.962946 | P36: 1436.804334 | Q36: 28630.15352 | R36: 1840.32 | S36: 1404.962946 | T36: Breakout
A37: 17.5 | B37: 13.5 | C37: 13.875 | D37: 34.07345007 | E37: 34.2408747 | F37: 342.7650407 | G37: 355.7334365 | H37: 263.614273 | I37: 14736.48586 | J37: 3067.2 | K37: N/A | L37: 3067.2 | M37: Yield | N37: 25.13274123 | O37: 1404.962946 | P37: 1436.804334 | Q37: 29472.97172 | R37: 1840.32 | S37: 1404.962946 | T37: Breakout
A38: 18 | B38: 14 | C38: 14.375 | D38: 35.09985755 | E38: 35.26240916 | F38: 366.6871482 | G38: 380.0507637 | H38: 271.1381078 | I38: 15157.08101 | J38: 3067.2 | K38: N/A | L38: 3067.2 | M38: Yield | N38: 25.13274123 | O38: 1404.962946 | P38: 1436.804334 | Q38: 30314.16202 | R38: 1840.32 | S38: 1404.962946 | T38: Breakout
A39: 18.5 | B39: 14.5 | C39: 14.875 | D39: 36.12478374 | E39: 36.28274383 | F39: =IF(B39=0,0,((B39/(6*D39))*((3*B39*B39)+(4*D39*D39)))) -> 391.4019971 | G39: =IF(C39=0,0,((C39/(6*E39))*((3*C39*C39)+(4*E39*E39)))) -> 405.1605091 | H39: 278.6475795 | I39: 15576.87324 | J39: 3067.2 | K39: N/A | L39: =IF($B$4="Headed",MIN(I39:J39),MIN(I39:K39)) -> 3067.2 | M39: Yield | N39: 25.13274123 | O39: 1404.962946 | P39: 1436.804334 | Q39: 31153.74648 | R39: 1840.32 | S39: 1404.962946 | T39: Breakout
A40: 19 | B40: 15 | C40: 15.375 | D40: 37.14835124 | E40: 37.30197716 | F40: 416.9094854 | G40: 431.0626012 | H40: 286.1428613 | I40: 15995.87223 | J40: 3067.2 | K40: N/A | L40: 3067.2 | M40: Yield | N40: 25.13274123 | O40: 1404.962946 | P40: 1436.804334 | Q40: 31991.74446 | R40: 1840.32 | S40: 1404.962946 | T40: Breakout
A41: 19.5 | B41: 15.5 | C41: 15.875 | D41: 38.17066937 | E41: 38.32019702 | F41: 443.2095231 | G41: 457.7569774 | H41: 293.624106 | I41: 16414.08652 | J41: 3067.2 | K41: N/A | L41: 3067.2 | M41: Yield | N41: 25.13274123 | O41: 1404.962946 | P41: 1436.804334 | Q41: 32828.17304 | R41: 1840.32 | S41: 1404.962946 | T41: Breakout
A42: 20 | B42: 16 | C42: 16.375 | D42: 39.19183588 | E42: 39.33748213 | F42: 470.3020306 | G42: 485.2435822 | H42: 301.0914486 | I42: 16831.52366 | J42: 3067.2 | K42: N/A | L42: 3067.2 | M42: Yield | N42: 25.13274123 | O42: 1404.962946 | P42: 1436.804334 | Q42: 33663.04733 | R42: 1840.32 | S42: 1404.962946 | T42: Breakout
A43: 20.5 | B43: 16.5 | C43: 16.875 | D43: 40.21193853 | E43: 40.35390316 | F43: 498.1869374 | G43: 513.5223662 | H43: 308.5450091 | I43: 17248.19036 | J43: 3067.2 | K43: N/A | L43: 3067.2 | M43: Yield | N43: 25.13274123 | O43: 1404.962946 | P43: 1436.804334 | Q43: 34496.38072 | R43: 1840.32 | S43: 1404.962946 | T43: Breakout
A44: 21 | B44: 17 | C44: 17.375 | D44: 41.23105626 | E44: 41.36952381 | F44: 526.8641805 | G44: 542.5932856 | H44: 315.9848941 | I44: 17664.09258 | J44: 3067.2 | K44: N/A | L44: 3067.2 | M44: Yield | N44: 25.13274123 | O44: 1404.962946 | P44: 1436.804334 | Q44: 35328.18515 | R44: 1840.32 | S44: 1404.962946 | T44: Breakout
A45: 21.5 | B45: 17.5 | C45: 17.875 | D45: 42.24926035 | E45: 42.38440161 | F45: =IF(B45=0,0,((B45/(6*D45))*((3*B45*B45)+(4*D45*D45)))) -> 556.333704 | G45: =IF(C45=0,0,((C45/(6*E45))*((3*C45*C45)+(4*E45*E45)))) -> 572.4563012 | H45: 323.411199 | I45: 18079.23564 | J45: 3067.2 | K45: N/A | L45: =IF($B$4="Headed",MIN(I45:J45),MIN(I45:K45)) -> 3067.2 | M45: Yield | N45: 25.13274123 | O45: 1404.962946 | P45: 1436.804334 | Q45: 36158.47128 | R45: 1840.32 | S45: 1404.962946 | T45: Breakout
P46: *Values assume threads cross shear plane.
A48: Unity Interaction
A49: Wall thickness, t = | B49: =B9 -> 7.625
A50: Anchor Type = | B50: =B4 -> Bent-Bar
A51: Anchor Diameter, db = | B51: =B6 -> 0.5
A52: Edge Distance, lbe = | B52: =B10 -> 4
A53: Anchor Embedment, lb (in.) | B53: Allowable Axial Load, Ba (lb) | C53: Allowable Shear Load, Bv (lb)
A54: =$A18 -> 2 | B54: =L18 -> 702.4814731 | C54: 0
B55: 0 | C55: =S18 -> 1404.962946
A56: =$A19 -> 4 | B56: =L19 -> 2762.226045 | C56: 0
B57: 0 | C57: =S19 -> 1404.962946
A58: =$A20 -> 5 | B58: =L20 -> 3067.2 | C58: 0
B59: 0 | C59: =S20 -> 1404.962946
A60: =$A21 -> 6 | B60: =L21 -> 3067.2 | C60: 0
B61: 0 | C61: =S21 -> 1404.962946
A62: =$A22 -> 7 | B62: =L22 -> 3067.2 | C62: 0
B63: 0 | C63: =S22 -> 1404.962946
A64: =$A23 -> 8 | B64: =L23 -> 3067.2 | C64: 0
B65: 0 | C65: =S23 -> 1404.962946
A66: =$A24 -> 9 | B66: =L24 -> 3067.2 | C66: 0
B67: 0 | C67: =S24 -> 1404.962946
A68: =$A25 -> 10 | B68: =L25 -> 3067.2 | C68: 0
B69: 0 | C69: =S25 -> 1404.962946
A70: =$A26 -> 11 | B70: =L26 -> 3067.2 | C70: 0
B71: 0 | C71: =S26 -> 1404.962946
A72: =$A27 -> 12.5 | B72: =L27 -> 3067.2 | C72: 0
B73: 0 | C73: =S27 -> 1404.962946
A74: =$A28 -> 13 | B74: =L28 -> 3067.2 | C74: 0
B75: 0 | C75: =S28 -> 1404.962946
A76: =$A29 -> 13.5 | B76: =L29 -> 3067.2 | C76: 0
B77: 0 | C77: =S29 -> 1404.962946
A78: =$A30 -> 14 | B78: =L30 -> 3067.2 | C78: 0
B79: 0 | C79: =S30 -> 1404.962946
A80: =$A31 -> 14.5 | B80: =L31 -> 3067.2 | C80: 0
B81: 0 | C81: =S31 -> 1404.962946
A82: =$A32 -> 15 | B82: =L32 -> 3067.2 | C82: 0
B83: 0 | C83: =S32 -> 1404.962946
A84: =$A33 -> 15.5 | B84: =L33 -> 3067.2 | C84: 0
B85: 0 | C85: =S33 -> 1404.962946
A86: =$A34 -> 16 | B86: =L34 -> 3067.2 | C86: 0
B87: 0 | C87: =S34 -> 1404.962946
A88: =$A35 -> 16.5 | B88: =L35 -> 3067.2 | C88: 0
B89: 0 | C89: =S35 -> 1404.962946
A90: =$A36 -> 17 | B90: =L36 -> 3067.2 | C90: 0
B91: 0 | C91: =S36 -> 1404.962946
A92: =$A37 -> 17.5 | B92: =L37 -> 3067.2 | C92: 0
B93: 0 | C93: =S37 -> 1404.962946
A94: =$A38 -> 18 | B94: =L38 -> 3067.2 | C94: 0
B95: 0 | C95: =S38 -> 1404.962946
A96: =$A39 -> 18.5 | B96: =L39 -> 3067.2 | C96: 0
B97: 0 | C97: =S39 -> 1404.962946
A98: =$A40 -> 19 | B98: =L40 -> 3067.2 | C98: 0
B99: 0 | C99: =S40 -> 1404.962946
A100: =$A41 -> 19.5 | B100: =L41 -> 3067.2 | C100: 0
B101: 0 | C101: =S41 -> 1404.962946
A102: =$A42 -> 20 | B102: =L42 -> 3067.2 | C102: 0
B103: 0 | C103: =S42 -> 1404.962946
A104: =$A43 -> 20.5 | B104: =L43 -> 3067.2 | C104: 0
B105: 0 | C105: =S43 -> 1404.962946
A106: =$A44 -> 21 | B106: =L44 -> 3067.2 | C106: 0
B107: 0 | C107: =S44 -> 1404.962946
A108: =$A45 -> 21.5 | B108: =L45 -> 3067.2 | C108: 0
B109: 0 | C109: =S45 -> 1404.962946

Sheet Instructions
C9: 2013 MSJC Anchor Bolt Design
C11: Instructions
C12: 1) | D12: Blue cells are for user input and can be modified as desired.
C13: 2) | D13: Beige cells are important output cells, as calculated by the spreadsheet, and cannot be modified.
C14: 3) | D14: A simple design summary box, located after user input, summarizes the adequacy of the design.
C15: 4) | D15: All calculations are conducted in US [in-lb] units.
C16: 5) | D16: Invalid user input will be prompted with an error message requiring the user to correct their input.
C17: Design Notes
C18: 1) | D18: Analysis and subsequent calculations are for a single anchor.
C19: 2) | D19: Wall thickness is the actual dimension, not a nominal measurement.
C20: 3) | D20: Tension force is indicated as a positive value.
C21: 4) | D21: It is the duty of the designer/user to verify the validity of calculations presented in the spreadsheets.
C22: Disclaimer
C23: NCMA and the companies disseminating this technical information disclaim any and all responsibility and
C24: liability for the accuracy and the application of the information contained in this publication.
C25: Worksheet Protection
C26: To prevent the inadvertant changing of the spreadsheet's functions, many of the cells are locked from editing.
C27: Users may unlock the spreadsheet if they so desire using the password: 'bloxrox'
K29: Ver. 1.2: Rev. March 19, 2019

Sheet Allowable Stress Design
M2: Date:
B3: 2013 MSJC Anchor Bolt Design | O3: (MM/DD/YYYY)
B4: Allowable Stress Design
B6: ***user input indicated by blue cells
B8: DATA INPUT AND SUMMARY OF DESIGN
B10: Propeties and Geometry
B11: Weather or Soil Exposure | D11: YES
B12: Top or Face Mount | D12: Top
B13: =IF(D12="Face", "**Assumed adequate distance from top/bottom of wall and spacing from adjacent anchors to develop breakout cone", "**Assumed adequate spacing from adjacent anchors to allow no overlap of breakout cones") -> **Assumed adequate spacing from adjacent anchors to allow no overlap of breakout cones
B15: Anchor Type = | D15: bent-bar
B16: Anchor Yield Strength = | D16: =IF(D15="Headed",60000,36000) -> 36000 | E16: psi
B17: Anchor Diameter, db = | D17: 0.875 | E17: in
B18: Anchor Hook Length, eb = | D18: 0 | E18: in
B19: =IF(D15="headed","**For headed anchor set hook length equal to 0","") -> 
B20: f'm = | D20: 2000 | E20: psi
B21: Wall thickness, t = | D21: 7.625 | E21: in
B22: Edge Distance, lbe = | D22: 3.25 | E22: in
B23: Net Anchor Area, Ab = | D23: =IF(D17=0.5,0.142,IF(D17=0.625,0.226,IF(D17=0.75,0.334,IF(D17=0.875,0.462,"NA")))) -> 0.462 | E23: in2
B25: Effective Embed. Length, lb = | D25: 8 | E25: in
B27: Loading
B28: Shear Force, Vtotal = | D28: 500 | E28: lbs
B29: Offset distance, e = | D29: 2 | E29: in
B30: Dist. From C.L. of Bolt To Edge of Ledger, x = | D30: 4 | E30: in
B31: Direct Tension Force, Ptotal = | D31: 1000 | E31: lbs
C35: =IF(AND(G44>D43, E70<=1),"<<Anchor design is satisfactory. See detailed analysis>>", "<<Anchor is inadequate, revise design. See detailed analysis>>") -> <<Anchor design is satisfactory. See detailed analysis>>
B39: Detailed Analysis
B40: Check minimum embed.
B41: [TMS 402-13 §1.17.6] | C41: lb= | D41: =D25 -> 8 | E41: in | F41: =IF(D41>=I41,">","<") -> > | G41: lb_min = min(4db,2 in) = | I41: =IF(4*D17<2,2,4*D17) -> 3.5 | J41: in | K41: =IF(D25>=I41,"<Satisfactory>", "<Fail, revise embed>") -> <Satisfactory>
B42: Check minimum cover
B43: [TMS 402-13 §1.16.4.1] | C43: covermin= | D43: =IF(D11="YES",IF(D17>(5/8),2,1.5),1.5) -> 2 | E43: in
C44: coveractual= | D44: (for top mounted) | F44: t - leb = | G44: =IF(D12="Top",MIN(D21-D22,D22),D21-D25) -> 3.25 | H44: in | I44: =IF(D12="Top",IF(G44>D43, "<Satisfactory>", "<Fail, revise edge distance.>"),"") -> <Satisfactory>
D45: (for face mounted) | F45: t - lb = | I45: =IF(D12="Face",IF(G44>D43, "<Satisfactory>", "<Fail, revise embed.>"),"") -> 
B46: Total Tension Force Considering Ecc., baf
E47: =IF(D30>0,D31+D28*D29/((5/6)*D30), D31) -> 1300 | F47: lbs | H47: ***assuming that moment arm is (5/6) of 'd'
B49: Determine Tensile Capacity
C50: h1= | D50: =IF(D12="Face",0,IF(D25-$D$22<0,0,D25-$D$22)) -> 4.75 | E50: in | F50: s1= | G50: =(8*D50*(D25-(D50/2)))^0.5 -> 14.62019152 | H50: in | I50: A1= | J50: =IF(D50=0,0,((D50/(6*G50))*((3*D50*D50)+(4*G50*G50)))) -> 49.96247393 | K50: in2
C51: h2= | D51: =IF(D12="Face",0,IF(D25+$D$22-D21<0,0,D25+$D$22-D21)) -> 3.625 | E51: in | F51: s2= | G51: =(8*D51*(D25-(D51/2)))^0.5 -> 13.39542832 | H51: in | I51: A2= | J51: =IF(D51=0,0,((D51/(6*G51))*((3*D51*D51)+(4*G51*G51)))) -> 34.15030835 | K51: in2
E52: =(PI()*(D25^2))-J50-J51 -> 116.9491475 | F52: in2
B53: [TMS 402-13 Eqn. 8-1] | C53: Masonry Tensile Breakout | K53: =1.25*E52*($D$20^0.5) -> 6537.656096 | L53: lbs
B54: [TMS 402-13 Eqn. 8-2] | C54: Steel Tensile Yield | K54: =0.6*$D$23*$D$16 -> 9979.2 | L54: lbs
B55: [TMS 402-13 Eqn. 8-4] | C55: Anchor Pullout | K55: =IF(D15="bent-bar",((0.6*$D$20*$D$18*$D$17)+((120*3.141592)*(D25+$D$18+$D$17)*$D$17)),"N/A") -> 2927.571045 | L55: lbs
C56: Design Axial Strength | K56: =IF(MIN(K53:K55)=K53,K53,IF(MIN(K53:K55)=K54,K54,K55)) -> 2927.571045 | L56: lbs | M56: =IF(K56>$E$47,">", "<") -> > | N56: baf | O56: =IF(K56>$E$47, "<Satisfactory>", "<Fail, revise anchor>") -> <Satisfactory>
C57: Governing Failure Mode: | E57: =IF(MIN(K53:K55)=K53,"Breakout",IF(MIN(K53:K55)=K54,"Anchor Yielding","Pullout")) -> Pullout
B59: Determine Shear Capacity
E60: =(0.5)*(3.141592)*($D$22^2) -> 16.59153275 | F60: in2
B61: [TMS 402-13 Eqn. 8-6] | C61: Masonry Shear Breakout | K61: =1.25*E60*($D$20^0.5) -> 927.494877 | L61: lbs
B62: [TMS 402-13 Eqn. 8-7] | C62: Masonry Crushing | K62: =(350*($D$20*$D$23)^0.25) -> 1929.683295 | L62: lbs
B63: [TMS 402-13 Eqn. 8-8] | C63: Anchor Shear Pryout | K63: =2*K53 -> 13075.31219 | L63: lbs
B64: [TMS 402-13 Eqn. 8-9] | C64: Steel Shear Yielding | K64: =0.36*$D$23*$D$16 -> 5987.52 | L64: lbs
C65: Design Shear Strength | K65: =IF(MIN(K61:K64)=K61,K61,IF(MIN(K61:K64)=K62,K62,IF(MIN(K61:K64)=K63,K63,K64))) -> 927.494877 | L65: lbs | M65: =IF(K65>$D$28,">", "<") -> > | N65: bvf | O65: =IF(K65>$D$28, "<Satisfactory>", "<Fail, revise anchor>") -> <Satisfactory>
C66: Governing Failure Mode: | E66: =IF(MIN(K61:K64)=K61,"Breakout",IF(MIN(K61:K64)=K62,"Crushing",IF(MIN(K61:K64)=K63,"Pryout","Yielding"))) -> Breakout
B68: Check Combined Tension and Shear Interaction
B70: [TMS 402-13 Eqn. 8-10] | E70: =ROUND((E47/K56)+(D28/K65),3) -> 0.983 | F70: =IF(E70>=G70,">","<") -> < | G70: 1 | H70: =IF(E70<=G70, "<Satisfactory>", "<Fail, revise anchor>") -> <Satisfactory>
O73: Revision Date: 03/19/2019

Sheet Strength Design
M2: Date:
B3: 2013 MSJC Anchor Bolt Design | O3: (MM/DD/YYYY)
B4: Strength Design
B6: ***user input indicated by blue cells
B8: DATA INPUT AND SUMMARY OF DESIGN
B10: Propeties and Geometry
B11: Weather or Soil Exposure | D11: YES
B12: Top or Face Mounted | D12: Top
B13: =IF(D12="Face", "**Assumed adequate distance from top/bottom of wall and spacing from adjacent anchors to develop breakout cone", "**Assumed adequate spacing from adjacent anchors to allow no overlap of breakout cones") -> **Assumed adequate spacing from adjacent anchors to allow no overlap of breakout cones
B15: Anchor Type = | D15: headed
B16: Anchor Yield Strength, fy = | D16: =IF(D15="Headed",60000,36000) -> 60000 | E16: psi
B17: Anchor Diameter, db = | D17: 0.5 | E17: in
B18: Anchor Hook Length, eb = | D18: 0 | E18: in
B19: =IF(D15="headed","**For headed anchor set hook length equal to 0","") -> **For headed anchor set hook length equal to 0
B20: f'm = | D20: 2000 | E20: psi
B21: Wall thickness, t = | D21: 7.625 | E21: in
B22: Edge Distance, lbe = | D22: 3.25 | E22: in
B23: Net Anchor Area, Ab = | D23: =IF(D17=0.5,0.142,IF(D17=0.625,0.226,IF(D17=0.75,0.334,IF(D17=0.875,0.462,"NA")))) -> 0.142 | E23: in2
B25: Effective Embed. Length, lb = | D25: 8 | E25: in
B27: Loading (factored)
B28: Shear Force, Vu = | D28: 500 | E28: lbs
B29: Offset distance, e = | D29: 2 | E29: in
B30: Dist. From C.L. of Bolt To Edge of Ledger, x = | D30: 4 | E30: in
B31: Direct Tension Force, Pu = | D31: 1000 | E31: lbs
C35: =IF(AND(G44>D43, E70<=1),"<<Anchor design is satisfactory. See detailed analysis>>", "<<Anchor is inadequate, revise design. See detailed analysis>>") -> <<Anchor design is satisfactory. See detailed analysis>>
B39: Detailed Analysis
B40: Check minimum embed.
B41: [TMS 402-13 §1.17.6] | C41: lb= | D41: =D25 -> 8 | E41: in | F41: =IF(D41>=I41,">","<") -> > | G41: lb_min = min(4db,2 in) = | I41: =IF(4*D17<2,2,4*D17) -> 2 | J41: in | K41: =IF(D25>=I41,"<Satisfactory>", "<Fail, revise embed>") -> <Satisfactory>
B42: Check minimum cover
B43: [TMS 402-13 §1.16.4.1] | C43: covermin= | D43: =IF(D11="YES",IF(D17>(5/8),2,1.5),1.5) -> 1.5 | E43: in
C44: coveractual= | D44: (for top mounted) | F44: t - leb = | G44: =IF(D12="Top",MIN(D21-D22,D22),D21-D25) -> 3.25 | H44: in | I44: =IF(G44>D43, "<Satisfactory>","<Fail, revise embed.>") -> <Satisfactory>
D45: (for face mounted) | F45: t - lb =
B46: Total Tension Force Considering Ecc., baf
E47: =D31+D28*D29/((5/6)*D30) -> 1300 | F47: lbs | H47: ***assuming that moment arm is (5/6) of 'd'
B49: Determine Tensile Capacity
C50: h1= | D50: =IF(D12="Face",0,IF(D25-$D$22<0,0,D25-$D$22)) -> 4.75 | E50: in | F50: s1= | G50: =(8*D50*(D25-(D50/2)))^0.5 -> 14.62019152 | H50: in | I50: A1= | J50: =IF(D50=0,0,((D50/(6*G50))*((3*D50*D50)+(4*G50*G50)))) -> 49.96247393 | K50: in2
C51: h2= | D51: =IF(D12="Face",0,IF(D25+$D$22-D21<0,0,D25+$D$22-D21)) -> 3.625 | E51: in | F51: s2= | G51: =(8*D51*(D25-(D51/2)))^0.5 -> 13.39542832 | H51: in | I51: A2= | J51: =IF(D51=0,0,((D51/(6*G51))*((3*D51*D51)+(4*G51*G51)))) -> 34.15030835 | K51: in2
E52: =(PI()*(D25^2))-J50-J51 -> 116.9491475 | F52: in2
B53: [TMS 402-13 Eqn. 9-1] | C53: Masonry Tensile Breakout ( f = 0.5) | K53: =4*E52*($D$20^0.5) -> 20920.49951 | L53: lbs
B54: [TMS 402-13 Eqn. 9-2] | C54: Steel Tensile Yield ( f = 0.9) | K54: =$D$23*$D$16 -> 8520 | L54: lbs
B55: [TMS 402-13 Eqn. 9-4] | C55: Anchor Pullout ( f = 0.65) | K55: =IF(D15="bent-bar",((1.5*$D$20*$D$18*$D$17)+((300*3.141592)*(D25+$D$18+$D$17)*$D$17)),"N/A") -> N/A | L55: lbs
C56: Design Axial Strength | K56: =IF(MIN(K53:K55)=K53,0.5*K53,IF(MIN(K53:K55)=K54,0.9*K54,0.65*K55)) -> 7668 | L56: lbs | M56: =IF(K56>$E$47,">", "<") -> > | N56: baf | O56: =IF(K56>$E$47, "<Satisfactory>", "<Fail, revise anchor>") -> <Satisfactory>
C57: Governing Failure Mode: | E57: =IF(MIN(K53:K55)=K53,"Breakout",IF(MIN(K53:K55)=K54,"Anchor Yielding","Pullout")) -> Anchor Yielding
B59: Determine Shear Capacity
E60: =(0.5)*(3.141592)*($D$22^2) -> 16.59153275 | F60: in2
B61: [TMS 402-13 Eqn. 9-6] | C61: Masonry Shear Breakout ( f = 0.5) | K61: =4*E60*($D$20^0.5) -> 2967.983606 | L61: lbs
B62: [TMS 402-13Eqn. 9-7] | C62: Masonry Crushing ( f = 0.5) | K62: =(1050*($D$20*$D$23)^0.25) -> 4310.413002 | L62: lbs
B63: [TMS 402-13 Eqn. 9-8] | C63: Anchor Shear Pryout ( f = 0.5) | K63: =2*K53 -> 41840.99901 | L63: lbs
B64: [TMS 402-13 Eqn. 9-9] | C64: Steel Shear Yielding ( f = 0.9) | K64: =K54*0.6 -> 5112 | L64: lbs
C65: Design Shear Strength | K65: =IF(MIN(K61:K64)=K61,0.5*K61,IF(MIN(K61:K64)=K62,0.5*K62,IF(MIN(K61:K64)=K63,0.5*K63,0.9*K64))) -> 1483.991803 | L65: lbs | M65: =IF(K65>$D$28,">", "<") -> > | N65: bvf | O65: =IF(K65>$D$28, "<Satisfactory>", "<Fail, revise anchor>") -> <Satisfactory>
C66: Governing Failure Mode: | E66: =IF(MIN(K61:K64)=K61,"Breakout",IF(MIN(K61:K64)=K62,"Crushing",IF(MIN(K61:K64)=K63,"Pryout","Yielding"))) -> Breakout
B68: Check Combined Tension and Shear Interaction
B70: [TMS 402-13 Eqn. 9-10] | E70: =ROUND((E47/K56)+(D28/K65),3) -> 0.506 | F70: =IF(E70>=G70,">","<") -> < | G70: 1 | H70: =IF(E70<=G70, "<Satisfactory>", "<Fail, revise anchor>") -> <Satisfactory>
O73: Revision Date: 03/19/2019

Sheet Figure 6 (hidden)
A1: Unity Interaction - Allowable Stress Design
A2: Wall thickness, t = | B2: 7.625
A3: Anchor Type = | B3: Headed
A4: Anchor Diameter, db = | B4: 0.5
A5: Edge Distance, lbe = | B5: 2.0 in. | D5: 3.8125 in. | F5: 5.625 in.
A6: Anchor Embedment, lb (in.) | B6: Allowable Axial Load, Ba (lb) | C6: Allowable Shear Load, Bv (lb) | D6: Allowable Axial Load, Ba (lb) | E6: Allowable Shear Load, Bv (lb) | F6: Allowable Axial Load, Ba (lb) | G6: Allowable Shear Load, Bv (lb) | I6: Ledger Connection | K6: Allowable Axial Load, Ba (lb) | L6: Allowable Shear Load, Bv (lb)
A7: 2 | B7: 608.3666748 | C7: 0 | D7: 608.3666748 | E7: 0 | F7: 608.3666748 | G7: 0 | I7: Anchor Embedment, lb (in.) = | J7: 5.5 | K7: 4600.8 | L7: 0
B8: 0 | C8: 304.1833374 | D8: 0 | E8: 1105.338084 | F8: 0 | G8: 1216.73335 | I8: Anchor Diameter, db = | J8: 0.5 | K8: 0 | L8: 1337
A9: 3 | B9: 1219.074792 | C9: 0 | D9: 1368.825018 | E9: 0 | F9: 1219.074792 | G9: 0 | I9: *Anchor shear strength controlled by masonry crushing; requires at least 4.2 in. of edge distance.
B10: 0 | C10: 304.1833374 | D10: 0 | E10: 1105.338084 | F10: 0 | G10: 1337.097095
A11: 3.5 | B11: 1570.794095 | C11: 0 | D11: 1863.122942 | E11: 0 | F11: 1570.794095 | G11: 0
B12: 0 | C12: 304.1833374 | D12: 0 | E12: 1105.338084 | F12: 0 | G12: 1337.097095 | I12: Legend Information
A13: 4 | B13: 1958.302254 | C13: 0 | D13: 2404.037988 | E13: 0 | F13: 1958.302254 | G13: 0 | I13: Top of Wall, lbe = 2.0 in.
B14: 0 | C14: 304.1833374 | D14: 0 | E14: 1105.338084 | F14: 0 | G14: 1337.097095 | I14: Top of Wall, lbe = 3.81 in.
A15: 4.5 | B15: 2382.423121 | C15: 0 | D15: 2864.38848 | E15: 0 | F15: 2382.423121 | G15: 0 | I15: Top of Wall, lbe = 5.625 in.
B16: 0 | C16: 304.1833374 | D16: 0 | E16: 1105.338084 | F16: 0 | G16: 1337.097095 | I16: Side of Wall, lbe > 5.5 in.; lb = 5.5 in.
A17: 5 | B17: 2843.56986 | C17: 0 | D17: 3293.826904 | E17: 0 | F17: 2843.56986 | G17: 0
B18: 0 | C18: 304.1833374 | D18: 0 | E18: 1105.338084 | F18: 0 | G18: 1337.097095
A19: 5.5 | B19: 3341.974112 | C19: 0 | D19: 3707.80916 | E19: 0 | F19: 3341.974112 | G19: 0
B20: 0 | C20: 304.1833374 | D20: 0 | E20: 1105.338084 | F20: 0 | G20: 1337.097095
A21: 6 | B21: 3826.929966 | C21: 0 | D21: 4112.223073 | E21: 0 | F21: 3826.929966 | G21: 0
B22: 0 | C22: 304.1833374 | D22: 0 | E22: 1105.338084 | F22: 0 | G22: 1337.097095
A23: 7 | B23: 4684.551621 | C23: 0 | D23: 4903.149206 | E23: 0 | F23: 4684.551621 | G23: 0
B24: 0 | C24: 304.1833374 | D24: 0 | E24: 1105.338084 | F24: 0 | G24: 1337.097095
A25: 8 | B25: 5112 | C25: 0 | D25: 5112 | E25: 0 | F25: 5112 | G25: 0
B26: 0 | C26: 304.1833374 | D26: 0 | E26: 1105.338084 | F26: 0 | G26: 1337.097095

Sheet Figure 7 (hidden)
A1: Unity Interaction - Strength Design
A2: Wall thickness, t = | B2: 7.625
A3: Anchor Type = | B3: Headed
A4: Anchor Diameter, db = | B4: 0.5
A5: Edge Distance, lbe = | B5: 2.0 in. | D5: 3.8125 in. | F5: 5.625 in.
A6: Anchor Embedment, lb (in.) | B6: Design Axial Load, FBan (lb) | C6: Design Shear Load, FBvn (lb) | D6: Design Axial Load, FBan (lb) | E6: Design Shear Load, FBvn (lb) | F6: Design Axial Load, FBan (lb) | G6: Design Shear Load, FBvn (lb) | I6: Ledger Connection | K6: Design Axial Load, FBan (lb) | L6: Design Shear Load, FBvn (lb)
A7: 2 | B7: 973.3866797 | C7: 0 | D7: 973.3866797 | E7: 0 | F7: 973.3866797 | G7: 0 | I7: Anchor Embedment, lb (in.) = | J7: 5.5 | K7: 7361.2 | L7: 0
B8: 0 | C8: 486.6933399 | D8: 0 | E8: 1768.540935 | F8: 0 | G8: 1946.773359 | I8: Anchor Diameter, db = | J8: 0.5 | K8: 0 | L8: 2005.6
A9: 3 | B9: 1950.519668 | C9: 0 | D9: 2190.120029 | E9: 0 | F9: 1950.519668 | G9: 0 | I9: *Anchor shear strength controlled by masonry crushing; requires at least 4.2 in. of edge distance.
B10: 0 | C10: 486.6933399 | D10: 0 | E10: 1768.540935 | F10: 0 | G10: 2005.645642
A11: 3.5 | B11: 2513.270552 | C11: 0 | D11: 2980.996707 | E11: 0 | F11: 2513.270552 | G11: 0
B12: 0 | C12: 486.6933399 | D12: 0 | E12: 1768.540935 | F12: 0 | G12: 2005.645642 | I12: Legend Information
A13: 4 | B13: 3133.283607 | C13: 0 | D13: 3846.460781 | E13: 0 | F13: 3133.283607 | G13: 0 | I13: Top of Wall, lbe = 2.0 in.
B14: 0 | C14: 486.6933399 | D14: 0 | E14: 1768.540935 | F14: 0 | G14: 2005.645642 | I14: Top of Wall, lbe = 3.81 in.
A15: 4.5 | B15: 3811.876994 | C15: 0 | D15: 4583.021567 | E15: 0 | F15: 3811.876994 | G15: 0 | I15: Top of Wall, lbe = 5.625 in.
B16: 0 | C16: 486.6933399 | D16: 0 | E16: 1768.540935 | F16: 0 | G16: 2005.645642 | I16: Side of Wall, lbe > 5.5 in.; lb = 5.5 in.
A17: 5 | B17: 4549.711776 | C17: 0 | D17: 5270.123046 | E17: 0 | F17: 4549.711776 | G17: 0
B18: 0 | C18: 486.6933399 | D18: 0 | E18: 1768.540935 | F18: 0 | G18: 2005.645642
A19: 5.5 | B19: 5347.15858 | C19: 0 | D19: 5932.494655 | E19: 0 | F19: 5347.15858 | G19: 0
B20: 0 | C20: 486.6933399 | D20: 0 | E20: 1768.540935 | F20: 0 | G20: 2005.645642
A21: 6 | B21: 6123.087946 | C21: 0 | D21: 6579.556917 | E21: 0 | F21: 6123.087946 | G21: 0
B22: 0 | C22: 486.6933399 | D22: 0 | E22: 1768.540935 | F22: 0 | G22: 2005.645642
A23: 7 | B23: 7495.282594 | C23: 0 | D23: 7668 | E23: 0 | F23: 7495.282594 | G23: 0
B24: 0 | C24: 486.6933399 | D24: 0 | E24: 1768.540935 | F24: 0 | G24: 2005.645642
A25: 8 | B25: 7668 | C25: 0 | D25: 7668 | E25: 0 | F25: 7668 | G25: 0
B26: 0 | C26: 486.6933399 | D26: 0 | E26: 1768.540935 | F26: 0 | G26: 2005.645642

Sheet Figure X (hidden)
A1: Unity Interaction
A2: Wall thickness, t = | B2: 7.625
A3: Anchor Type = | B3: Headed
A4: Anchor Diameter, db = | B4: 0.5
A5: Edge Distance, lbe = | B5: 2.0 in. | D5: 3.8125 in. | F5: 5.625 in.
A6: Anchor Embedment, lb (in.) | B6: Allowable Axial Load, Ba (lb) | C6: Allowable Shear Load, Bv (lb) | D6: Allowable Axial Load, Ba (lb) | E6: Allowable Shear Load, Bv (lb) | F6: Allowable Axial Load, Ba (lb) | G6: Allowable Shear Load, Bv (lb) | I6: Ledger Connection | K6: Allowable Axial Load, Ba (lb) | L6: Allowable Shear Load, Bv (lb)
A7: 2 | B7: 608.3666748 | C7: 0 | D7: 608.3666748 | E7: 0 | F7: 608.3666748 | G7: 0 | I7: Anchor Embedment, lb (in.) = | J7: 5.5 | K7: 4600.8 | L7: 0
B8: 0 | C8: 304.1833374 | D8: 0 | E8: 1105.338084 | F8: 0 | G8: 1216.73335 | I8: Anchor Diameter, db = | J8: 0.5 | K8: 0 | L8: 1337
A9: 3 | B9: 1219.074792 | C9: 0 | D9: 1368.825018 | E9: 0 | F9: 1219.074792 | G9: 0 | I9: *Anchor shear strength controlled by masonry crushing; requires at least 4.2 in. of edge distance.
B10: 0 | C10: 304.1833374 | D10: 0 | E10: 1105.338084 | F10: 0 | G10: 1337.097095
A11: 3.5 | B11: 1570.794095 | C11: 0 | D11: 1863.122942 | E11: 0 | F11: 1570.794095 | G11: 0
B12: 0 | C12: 304.1833374 | D12: 0 | E12: 1105.338084 | F12: 0 | G12: 1337.097095 | I12: Legend Information
A13: 4 | B13: 1958.302254 | C13: 0 | D13: 2404.037988 | E13: 0 | F13: 1958.302254 | G13: 0 | I13: Top of Wall, lbe = 2.0 in.
B14: 0 | C14: 304.1833374 | D14: 0 | E14: 1105.338084 | F14: 0 | G14: 1337.097095 | I14: Top of Wall, lbe = 3.81 in.
A15: 4.5 | B15: 2382.423121 | C15: 0 | D15: 2864.38848 | E15: 0 | F15: 2382.423121 | G15: 0 | I15: Top of Wall, lbe = 5.625 in.
B16: 0 | C16: 304.1833374 | D16: 0 | E16: 1105.338084 | F16: 0 | G16: 1337.097095 | I16: Side of Wall, lbe > 5.5 in.; lb = 5.5 in.
A17: 5 | B17: 2843.56986 | C17: 0 | D17: 3293.826904 | E17: 0 | F17: 2843.56986 | G17: 0
B18: 0 | C18: 304.1833374 | D18: 0 | E18: 1105.338084 | F18: 0 | G18: 1337.097095
A19: 5.5 | B19: 3341.974112 | C19: 0 | D19: 3707.80916 | E19: 0 | F19: 3341.974112 | G19: 0
B20: 0 | C20: 304.1833374 | D20: 0 | E20: 1105.338084 | F20: 0 | G20: 1337.097095
A21: 6 | B21: 3826.929966 | C21: 0 | D21: 4112.223073 | E21: 0 | F21: 3826.929966 | G21: 0
B22: 0 | C22: 304.1833374 | D22: 0 | E22: 1105.338084 | F22: 0 | G22: 1337.097095
A23: 7 | B23: 4684.551621 | C23: 0 | D23: 4903.149206 | E23: 0 | F23: 4684.551621 | G23: 0
B24: 0 | C24: 304.1833374 | D24: 0 | E24: 1105.338084 | F24: 0 | G24: 1337.097095
A25: 8 | B25: 5112 | C25: 0 | D25: 5112 | E25: 0 | F25: 5112 | G25: 0
B26: 0 | C26: 304.1833374 | D26: 0 | E26: 1105.338084 | F26: 0 | G26: 1337.097095

Sheet Data (hidden)
A1: Anchor Types | C1: Anchor Bolt Diameters | F1: Prism Strengths | I1: Weather/Soil | K1: Mounting
A2: headed | F2: 1900 | I2: YES | K2: Top
A3: bent-bar | C3: 0.5 | F3: 1500 | I3: NO | K3: Face
C4: 0.625 | F4: 2000
C5: 0.75 | F5: 2500
C6: 0.875 | F6: 3000
F7: 3500
F8: 4000
